[Event "36th European Club Cup 2021"]
[Site "Struga"]
[Date "2021.09.19"]
[Round "2.56"]
[White "Delchev, Aleksander"]
[Black "Ahlander, Bjorn"]
[Result "1-0"]
[ECO "E11"]
[WhiteElo "2500"]
[BlackElo "2383"]
[Annotator "ChessBase"]
[PlyCount "141"]
[EventDate "2021.09.18"]
[EventType "team-tourn"]
[EventCountry "MKD"]
[SourceTitle "playchess.com"]
[Source "ChessBase"]
[SourceQuality "1"]
[TimeControl "40/5400+30:1800+30"]

1. d4 {[%emt 0:00:13]} Nf6 {[%emt 0:00:04]} 2. c4 {[%emt 0:00:05]} e6 {[%emt 0:
00:03]} 3. Nf3 {[%emt 0:00:10]} Bb4+ {[%emt 0:01:06]} 4. Bd2 {[%emt 0:00:07]}
a5 {[%emt 0:00:31]} 5. g3 {[%emt 0:00:07]} d6 {[%emt 1:31:16]} 6. Bg2 {[%emt 0:
00:07]} Nbd7 {[%emt 0:00:00]} 7. O-O {[%emt 0:00:07]} e5 {[%emt 0:00:00]} 8. e3
{[%emt 0:00:05]} Bxd2 {[%emt 0:00:00]} 9. Nfxd2 {[%emt 0:00:06]} O-O {[%emt 0:
00:00]} 10. Nc3 {[%emt 0:00:06]} c6 {[%emt 0:00:00]} 11. a3 {[%emt 0:01:19]}
exd4 {[%emt 0:00:00]} 12. exd4 {[%emt 0:00:06]} Nb6 {[%emt 0:00:00]} 13. c5 {
[%emt 0:09:17]} dxc5 {[%emt 0:00:00]} 14. dxc5 {[%emt 0:03:19]} Nbd5 {[%emt 0:
00:00]} 15. Nxd5 {[%emt 0:02:47]} cxd5 {[%emt 0:00:00]} 16. b4 {[%emt 0:06:45]}
Bg4 {[%emt 0:00:00]} 17. Nf3 {[%emt 0:10:19]} Re8 {[%emt 0:00:00]} 18. Qd2 {
[%emt 0:15:46]} Qd7 {[%emt 0:00:00]} 19. Nd4 {[%emt 0:09:52]} Bh3 {[%emt 0:00:
00]} 20. f3 {[%emt 0:01:45]} Bxg2 {[%emt 0:00:00]} 21. Kxg2 {[%emt 0:00:08]} h6
{[%emt 0:00:00]} 22. Rae1 {[%emt 0:06:52]} axb4 {[%emt 0:00:00]} 23. axb4 {
[%emt 0:00:16]} Nh7 {[%emt 0:00:00]} 24. Rxe8+ {[%emt 0:09:26]} Rxe8 {[%emt 0:
00:00]} 25. Re1 {[%emt 0:00:08]} Ng5 {[%emt 0:00:00]} 26. Rxe8+ {[%emt 0:03:02]
} Qxe8 {[%emt 0:00:00]} 27. h4 {[%emt 0:02:01]} Ne6 {[%emt 0:00:00]} 28. Nf5 {
[%emt 0:00:05]} h5 {[%emt 0:00:00]} 29. Nd6 {[%emt 0:11:48]} Qe7 {[%emt 0:01:
03]} 30. Kf2 {[%emt 0:04:20]} d4 {[%emt 0:02:21]} 31. Qd3 {[%emt 0:01:25]} g5 {
[%emt 0:05:00]} 32. Qe4 {[%emt 0:00:30]} Qf6 {[%emt 0:01:55]} 33. Qf5 {[%emt 0:
02:22]} Qe7 {[%emt 0:00:04]} 34. Qe4 {[%emt 0:00:44]} Qf6 {[%emt 0:00:30]} 35.
hxg5 {[%emt 0:00:54]} Qxg5 {[%emt 0:00:59]} 36. f4 {[%emt 0:00:16]} Qg4 {
[%emt 0:02:14]} 37. f5 {[%emt 0:01:20]} Qxe4 {[%emt 0:00:38]} 38. Nxe4 {
[%emt 0:00:02]} Nc7 {[%emt 0:00:08]} 39. Ke2 {[%emt 0:00:56]} Nd5 {[%emt 0:01:
08]} 40. Kd3 {[%emt 0:00:00]} Nxb4+ {[%emt 0:00:00]} 41. Kxd4 {[%emt 0:00:10]}
Kg7 {[%emt 0:08:17]} 42. Ke5 {[%emt 0:11:27]} Nc6+ {[%emt 0:01:25]} 43. Kf4 {
[%emt 0:01:58]} f6 {[%emt 0:04:18]} 44. Nd6 {[%emt 0:00:05]} Na5 {[%emt 0:02:
19]} 45. Ke4 {[%emt 0:00:03]} Kf8 {[%emt 0:00:18]} 46. Kd5 {[%emt 0:02:22]} Ke7
{[%emt 0:00:03]} 47. Nc8+ {[%emt 0:02:23]} Kd7 {[%emt 0:01:53]} 48. Nb6+ {
[%emt 0:00:03]} Ke7 {[%emt 0:00:49]} 49. Nc8+ {[%emt 0:06:13]} Kd7 {[%emt 0:00:
33]} 50. Nd6 {[%emt 0:00:03]} Ke7 {[%emt 0:01:02]} 51. Kd4 {[%emt 0:01:45]} Kd7
{[%emt 0:02:20]} 52. Ne4 {[%emt 0:00:57]} Ke7 {[%emt 0:00:12]} 53. Kc3 {
[%emt 0:05:06]} Kf7 {[%emt 0:03:35]} 54. Kb4 {[%emt 0:01:21]} Nc6+ {[%emt 0:00:
02]} 55. Kb5 {[%emt 0:02:09]} Nd4+ {[%emt 0:05:14]} 56. Kb6 {[%emt 0:00:01]}
Kg7 {[%emt 0:00:52]} 57. Kxb7 {[%emt 0:02:13]} Nxf5 {[%emt 0:01:29]} 58. c6 {
[%emt 0:00:03]} Ne7 {[%emt 0:01:10]} 59. c7 {[%emt 0:00:03]} Kf7 {[%emt 0:00:
30]} 60. Nc5 {[%emt 0:01:36]} f5 {[%emt 0:01:20]} 61. Nd3 {[%emt 0:00:09]} Ke6
{[%emt 0:03:29]} 62. Nf4+ {[%emt 0:00:04]} Kd7 {[%emt 0:00:10]} 63. Nxh5 {
[%emt 0:01:20]} Kd6 {[%emt 0:00:57]} 64. c8=Q {[%emt 0:01:07]} Nxc8 {[%emt 0:
00:05]} 65. Kxc8 {[%emt 0:00:03]} Ke6 {[%emt 0:00:13]} 66. Kd8 {[%emt 0:00:22]}
Kf7 {[%emt 0:00:08]} 67. Kd7 {[%emt 0:00:03]} Kg6 {[%emt 0:00:06]} 68. Nf4+ {
[%emt 0:00:35]} Kg5 {[%emt 0:00:08]} 69. Ke6 {[%emt 0:00:06]} Kg4 {[%emt 0:00:
16]} 70. Ne2 {[%emt 0:00:03]} Kg5 {[%emt 0:00:44]} 71. Ke5 {[%emt 0:00:04]} 1-0

[Event "36th European Club Cup 2021"]
[Site "Struga"]
[Date "2021.09.19"]
[Round "2.57"]
[White "Dragicevic, Drazen"]
[Black "Vaisser, Anatoly"]
[Result "1/2-1/2"]
[ECO "A10"]
[WhiteElo "2344"]
[BlackElo "2494"]
[Annotator "ChessBase"]
[PlyCount "63"]
[EventDate "2021.09.18"]
[EventType "team-tourn"]
[EventCountry "MKD"]
[SourceTitle "playchess.com"]
[Source "ChessBase"]
[SourceQuality "1"]
[TimeControl "40/5400+30:1800+30"]

1. c4 {[%emt 0:00:13]} f5 {[%emt 0:00:17]} 2. g3 {[%emt 0:00:31]} Nf6 {[%emt 0:
00:37]} 3. Bg2 {[%emt 0:00:29]} g6 {[%emt 0:01:10]} 4. Nc3 {[%emt 0:01:10]} Bg7
{[%emt 0:01:06]} 5. d3 {[%emt 0:05:38]} d6 {[%emt 0:02:47]} 6. e4 {[%emt 0:00:
53]} fxe4 {[%emt 0:00:57]} 7. dxe4 {[%emt 0:00:45]} O-O {[%emt 0:00:53]} 8.
Nge2 {[%emt 0:00:31]} c5 {[%emt 0:00:33]} 9. e5 {[%emt 0:22:31]} dxe5 {[%emt 0:
01:55]} 10. Qxd8 {[%emt 0:03:41]} Rxd8 {[%emt 0:00:04]} 11. Be3 {[%emt 0:02:54]
} Nc6 {[%emt 0:02:58]} 12. Bxc5 {[%emt 0:09:44]} e4 {[%emt 0:08:20]} 13. Nxe4 {
[%emt 0:12:19]} Nxe4 {[%emt 0:04:34]} 14. Bxe4 {[%emt 0:00:04]} Bxb2 {[%emt 0:
00:21]} 15. Rb1 {[%emt 0:00:31]} Bf6 {[%emt 0:00:40]} 16. h4 {[%emt 0:06:04]}
Ne5 {[%emt 0:04:00]} 17. Nf4 {[%emt 0:00:58]} Bg4 {[%emt 0:02:26]} 18. Bd5+ {
[%emt 0:17:56]} e6 {[%emt 0:02:03]} 19. Bxb7 {[%emt 0:04:12]} Nf3+ {[%emt 0:08:
54]} 20. Bxf3 {[%emt 0:08:06]} Bxf3 {[%emt 0:00:04]} 21. O-O {[%emt 0:00:07]}
Rdc8 {[%emt 0:04:55]} 22. Be3 {[%emt 0:00:43]} Rxc4 {[%emt 0:01:02]} 23. Nxe6 {
[%emt 0:00:42]} Ra4 {[%emt 0:06:24]} 24. Ng5 {[%emt 0:00:18]} Bxg5 {[%emt 0:06:
09]} 25. Bxg5 {[%emt 0:00:16]} Rxa2 {[%emt 0:00:41]} 26. Rb3 {[%emt 0:00:56]}
Bd5 {[%emt 0:03:09]} 27. Rc3 {[%emt 0:00:26]} Rf8 {[%emt 0:02:43]} 28. Bh6 {
[%emt 0:00:29]} Re8 {[%emt 0:04:42]} 29. Rd1 {[%emt 0:01:13]} Ra5 {[%emt 0:01:
25]} 30. Rc7 {[%emt 0:00:25]} Bf3 {[%emt 0:00:30]} 31. Rdc1 {[%emt 0:00:32]}
Rae5 {[%emt 0:01:06]} 32. Be3 {[%emt 0:00:30]} 1/2-1/2

[Event "36th European Club Cup 2021"]
[Site "Struga"]
[Date "2021.09.19"]
[Round "2.58"]
[White "Olivier, Pierre"]
[Black "Jogstad, Martin"]
[Result "1/2-1/2"]
[ECO "D45"]
[WhiteElo "2215"]
[BlackElo "2341"]
[Annotator "ChessBase"]
[PlyCount "179"]
[EventDate "2021.09.18"]
[EventType "team-tourn"]
[EventCountry "MKD"]
[SourceTitle "playchess.com"]
[Source "ChessBase"]
[SourceQuality "1"]
[TimeControl "40/5400+30:1800+30"]

1. Nf3 {[%emt 0:00:15]} e6 {[%emt 0:00:39]} 2. c4 {[%emt 0:00:38]} d5 {[%emt 0:
00:10]} 3. e3 {[%emt 0:01:17]} Nf6 {[%emt 0:00:43]} 4. Nc3 {[%emt 0:01:00]} c6
{[%emt 0:00:38]} 5. b3 {[%emt 0:09:46]} Bd6 {[%emt 0:00:07]} 6. d4 {[%emt 0:00:
51]} O-O {[%emt 0:01:19]} 7. Be2 {[%emt 0:02:21]} Nbd7 {[%emt 0:00:59]} 8. O-O
{[%emt 0:04:05]} b6 {[%emt 0:00:31]} 9. Bb2 {[%emt 0:03:15]} Bb7 {[%emt 0:00:
31]} 10. Qc2 {[%emt 0:00:40]} Qe7 {[%emt 0:00:38]} 11. Rad1 {[%emt 0:02:10]}
Rfd8 {[%emt 0:06:15]} 12. Rfe1 {[%emt 0:09:56]} Rac8 {[%emt 0:00:48]} 13. e4 {
[%emt 0:06:17]} dxe4 {[%emt 0:00:54]} 14. Nxe4 {[%emt 0:04:22]} Nxe4 {[%emt 0:
01:06]} 15. Qxe4 {[%emt 0:00:03]} Bb4 {[%emt 0:01:14]} 16. Rf1 {[%emt 0:01:05]}
Nf6 {[%emt 0:01:00]} 17. Qh4 {[%emt 0:02:51]} Ba3 {[%emt 0:01:30]} 18. Ba1 {
[%emt 0:08:46]} c5 {[%emt 0:00:30]} 19. dxc5 {[%emt 0:05:27]} Bxc5 {[%emt 0:00:
30]} 20. Ne5 {[%emt 0:03:33]} Ne4 {[%emt 0:04:25]} 21. Qxe7 {[%emt 0:04:41]}
Bxe7 {[%emt 0:00:09]} 22. Rxd8+ {[%emt 0:01:19]} Rxd8 {[%emt 0:00:13]} 23. Rd1
{[%emt 0:00:18]} Rxd1+ {[%emt 0:01:24]} 24. Bxd1 {[%emt 0:00:02]} f6 {[%emt 0:
04:54]} 25. Nd3 {[%emt 0:02:01]} Kf7 {[%emt 0:08:53]} 26. Kf1 {[%emt 0:06:17]}
e5 {[%emt 0:09:38]} 27. Bb2 {[%emt 0:04:23]} Bd6 {[%emt 0:04:58]} 28. h3 {
[%emt 0:00:21]} Ke6 {[%emt 0:01:52]} 29. Bc2 {[%emt 0:04:29]} h5 {[%emt 0:01:
46]} 30. Nc1 {[%emt 0:03:22]} g5 {[%emt 0:02:59]} 31. Ne2 {[%emt 0:00:49]} h4 {
[%emt 0:29:32]} 32. Nc3 {[%emt 0:00:34]} Nxc3 {[%emt 0:01:21]} 33. Bxc3 {
[%emt 0:00:03]} e4 {[%emt 0:00:22]} 34. Bd1 {[%emt 0:02:59]} Be5 {[%emt 0:00:
19]} 35. Bd2 {[%emt 0:00:45]} Bd4 {[%emt 0:00:29]} 36. Bc1 {[%emt 0:00:58]} Bc6
{[%emt 0:01:49]} 37. Bd2 {[%emt 0:00:54]} Be5 {[%emt 0:02:30]} 38. Bc1 {
[%emt 0:01:58]} Bf4 {[%emt 0:00:32]} 39. Bb2 {[%emt 0:00:15]} f5 {[%emt 0:00:
22]} 40. Be2 {[%emt 0:00:00]} Be5 {[%emt 0:00:00]} 41. Bc1 {[%emt 0:01:21]} Kf6
{[%emt 0:00:59]} 42. Bd2 {[%emt 0:00:22]} Bd4 {[%emt 0:00:34]} 43. Bc1 {
[%emt 0:00:19]} Bd7 {[%emt 0:00:21]} 44. Bd1 {[%emt 0:16:05]} Bc3 {[%emt 0:01:
30]} 45. Be2 {[%emt 0:02:28]} Be8 {[%emt 0:02:37]} 46. Bd1 {[%emt 0:01:06]} Bg6
{[%emt 0:00:41]} 47. Kg1 {[%emt 0:00:57]} f4 {[%emt 0:00:56]} 48. Kf1 {[%emt 0:
00:54]} Ke5 {[%emt 0:00:40]} 49. Ba3 {[%emt 0:02:07]} Ke6 {[%emt 0:02:50]} 50.
Bg4+ {[%emt 0:02:18]} Bf5 {[%emt 0:00:14]} 51. Bxf5+ {[%emt 0:01:01]} Kxf5 {
[%emt 0:00:01]} 52. f3 {[%emt 0:00:07]} e3 {[%emt 0:02:48]} 53. Ke2 {[%emt 0:
00:15]} Ke6 {[%emt 0:00:18]} 54. Kd3 {[%emt 0:00:27]} Bf6 {[%emt 0:00:09]} 55.
c5 {[%emt 0:03:26]} b5 {[%emt 0:03:10]} 56. Bb4 {[%emt 0:03:20]} Kd5 {[%emt 0:
01:04]} 57. c6 {[%emt 0:02:12]} Kxc6 {[%emt 0:00:17]} 58. Bf8 {[%emt 0:00:08]}
Bd8 {[%emt 0:01:47]} 59. Bb4 {[%emt 0:00:41]} a6 {[%emt 0:02:24]} 60. Bf8 {
[%emt 0:00:25]} Kd7 {[%emt 0:00:07]} 61. Bg7 {[%emt 0:00:29]} Be7 {[%emt 0:00:
09]} 62. Bc3 {[%emt 0:00:36]} Ke6 {[%emt 0:00:05]} 63. Ba5 {[%emt 0:02:16]} Kd5
{[%emt 0:02:23]} 64. Bb6 {[%emt 0:00:26]} Kc6 {[%emt 0:01:25]} 65. Bd4 {
[%emt 0:00:12]} a5 {[%emt 0:00:13]} 66. Bc3 {[%emt 0:00:20]} Bd8 {[%emt 0:00:
27]} 67. Bd4 {[%emt 0:00:16]} a4 {[%emt 0:00:16]} 68. Bc3 {[%emt 0:00:25]} Kc5
{[%emt 0:00:45]} 69. bxa4 {[%emt 0:02:28]} bxa4 {[%emt 0:03:49]} 70. Be1 {
[%emt 0:00:10]} Be7 {[%emt 0:00:16]} 71. Bc3 {[%emt 0:00:14]} Kb5 {[%emt 0:00:
12]} 72. Bd4 {[%emt 0:01:44]} Kb4 {[%emt 0:00:28]} 73. Bb2 {[%emt 0:00:12]} Bd8
{[%emt 0:01:24]} 74. Ke2 {[%emt 0:00:44]} Kc4 {[%emt 0:07:20]} 75. Bg7 {
[%emt 0:00:11]} Be7 {[%emt 0:08:44]} 76. Bh8 {[%emt 0:00:11]} Bc5 {[%emt 0:03:
07]} 77. Bf6 {[%emt 0:00:47]} Kb4 {[%emt 0:02:22]} 78. Bb2 {[%emt 0:00:20]} Kc4
{[%emt 0:01:24]} 79. Bf6 {[%emt 0:00:03]} Bd4 {[%emt 0:00:42]} 80. Bxg5 {
[%emt 0:00:04]} Kc3 {[%emt 0:00:56]} 81. Bxf4 {[%emt 0:00:27]} Kb2 {[%emt 0:00:
15]} 82. g3 {[%emt 0:00:06]} hxg3 {[%emt 0:01:11]} 83. Bxg3 {[%emt 0:00:02]}
Kxa2 {[%emt 0:01:01]} 84. Bd6 {[%emt 0:00:47]} Kb3 {[%emt 0:00:30]} 85. h4 {
[%emt 0:00:13]} Kc4 {[%emt 0:00:49]} 86. h5 {[%emt 0:01:29]} Kd5 {[%emt 0:00:
06]} 87. Bb4 {[%emt 0:00:24]} Ke6 {[%emt 0:01:04]} 88. Kd3 {[%emt 0:00:12]} Bb2
{[%emt 0:00:25]} 89. Kxe3 {[%emt 0:00:15]} a3 {[%emt 0:00:15]} 90. Bxa3 {
[%emt 0:00:08]} 1/2-1/2

[Event "36th European Club Cup 2021"]
[Site "Struga"]
[Date "2021.09.19"]
[Round "2.59"]
[White "Storme, Isak"]
[Black "Kirszenberg, Marc"]
[Result "1-0"]
[ECO "D93"]
[WhiteElo "2304"]
[BlackElo "2139"]
[Annotator "NA"]
[PlyCount "63"]
[EventDate "2021.09.18"]
[EventType "team-tourn"]
[EventCountry "MKD"]
[SourceTitle "playchess.com"]
[Source "ChessBase"]
[SourceQuality "1"]
[TimeControl "40/5400+30:1800+30"]

1. d4 {[%emt 0:00:05]} d5 {[%emt 0:00:03]} 2. Bf4 {[%emt 0:00:06]} Nf6 {
[%emt 0:00:12]} 3. e3 {[%emt 0:00:06]} g6 {[%emt 0:05:32]} 4. c4 {[%emt 0:00:
48]} c6 {[%emt 0:00:20]} 5. Nc3 {[%emt 0:00:20]} Bg7 {[%emt 0:00:11]} 6. h3 {
[%emt 0:02:34]} O-O {[%emt 0:00:20]} 7. Nf3 {[%emt 0:00:06]} a6 {[%emt 0:00:57]
} 8. Be2 {[%emt 0:07:58]} b5 {[%emt 0:04:38]} 9. cxd5 {[%emt 0:03:55]} cxd5 {
[%emt 0:00:13]} 10. Rc1 {[%emt 0:01:49]} Nc6 {[%emt 0:01:53]} 11. Ne5 {[%emt 0:
06:09]} Bb7 {[%emt 0:03:09]} 12. Nd3 {[%emt 0:00:51]} Nd7 {[%emt 0:09:53]} 13.
a4 {[%emt 0:10:00]} bxa4 {[%emt 0:37:37]} 14. O-O {[%emt 0:00:37]} e5 {[%emt 0:
01:09]} 15. dxe5 {[%emt 0:00:32]} Ncxe5 {[%emt 0:02:42]} 16. Nxe5 {[%emt 0:01:
18]} Nxe5 {[%emt 0:01:19]} 17. Nxa4 {[%emt 0:00:46]} Qe7 {[%emt 0:10:34]} 18.
Qb3 {[%emt 0:03:26]} Rfd8 {[%emt 0:02:49]} 19. Rfd1 {[%emt 0:01:04]} Rab8 {
[%emt 0:05:24]} 20. Qa2 {[%emt 0:04:13]} Rbc8 {[%emt 0:01:21]} 21. Rxc8 {
[%emt 0:03:18]} Rxc8 {[%emt 0:00:15]} 22. Nc3 {[%emt 0:00:28]} Nc4 {[%emt 0:00:
40]} 23. Nxd5 {[%emt 0:01:35]} Bxd5 {[%emt 0:00:09]} 24. Rxd5 {[%emt 0:00:07]}
Nxb2 {[%emt 0:00:26]} 25. Qxa6 {[%emt 0:00:24]} Rc1+ {[%emt 0:01:00]} 26. Kh2 {
[%emt 0:00:26]} h5 {[%emt 0:00:23]} 27. Qa8+ {[%emt 0:22:32]} Kh7 {[%emt 0:00:
14]} 28. Bxh5 {[%emt 0:02:54]} gxh5 {[%emt 0:00:21]} 29. Rxh5+ {[%emt 0:00:26]}
Kg6 {[%emt 0:00:04]} 30. Qg8 {[%emt 0:01:15]} f6 {[%emt 0:07:47]} 31. Rh6+ {
[%emt 0:00:49]} Kf5 {[%emt 0:00:15]} 32. Qd5+ {[%emt 0:00:14]} 1-0

[Event "36th European Club Cup 2021"]
[Site "Struga"]
[Date "2021.09.19"]
[Round "2.60"]
[White "Moingt, Jean-Claude"]
[Black "Nord, Alexander"]
[Result "1/2-1/2"]
[ECO "B51"]
[WhiteElo "2125"]
[BlackElo "2144"]
[Annotator "NA"]
[PlyCount "166"]
[EventDate "2021.09.18"]
[EventType "team-tourn"]
[EventCountry "MKD"]
[SourceTitle "playchess.com"]
[Source "ChessBase"]
[SourceQuality "1"]
[TimeControl "40/5400+30:1800+30"]

1. e4 {[%emt 0:00:13]} c5 {[%emt 0:00:04]} 2. Nf3 {[%emt 0:00:31]} d6 {[%emt 0:
00:06]} 3. Bb5+ {[%emt 0:02:12]} Nd7 {[%emt 0:00:15]} 4. Ba4 {[%emt 0:00:08]}
Ngf6 {[%emt 0:03:17]} 5. O-O {[%emt 0:03:24]} g6 {[%emt 0:01:42]} 6. Re1 {
[%emt 0:01:49]} Bg7 {[%emt 0:00:28]} 7. c3 {[%emt 0:15:22]} O-O {[%emt 0:06:51]
} 8. d4 {[%emt 0:00:36]} e5 {[%emt 0:10:45]} 9. dxe5 {[%emt 0:12:05]} dxe5 {
[%emt 0:00:16]} 10. Nbd2 {[%emt 0:00:19]} Qe7 {[%emt 0:04:46]} 11. Nc4 {
[%emt 0:06:16]} Rd8 {[%emt 0:02:07]} 12. Nd6 {[%emt 0:03:08]} Nb6 {[%emt 0:04:
00]} 13. Nxc8 {[%emt 0:00:05]} Raxc8 {[%emt 0:00:09]} 14. Qc2 {[%emt 0:00:05]}
h6 {[%emt 0:05:43]} 15. Bb5 {[%emt 0:05:52]} c4 {[%emt 0:09:39]} 16. Be3 {
[%emt 0:02:33]} Nfd7 {[%emt 0:07:39]} 17. Bxd7 {[%emt 0:02:21]} Rxd7 {[%emt 0:
00:30]} 18. Red1 {[%emt 0:04:04]} Rcd8 {[%emt 0:00:55]} 19. Ne1 {[%emt 0:00:13]
} Kh7 {[%emt 0:02:31]} 20. Qe2 {[%emt 0:05:41]} Na4 {[%emt 0:07:26]} 21. Rxd7 {
[%emt 0:05:03]} Qxd7 {[%emt 0:00:04]} 22. Qxc4 {[%emt 0:00:53]} Nxb2 {[%emt 0:
00:33]} 23. Qb3 {[%emt 0:02:39]} Nd1 {[%emt 0:02:12]} 24. Nc2 {[%emt 0:03:27]}
Qd3 {[%emt 0:01:04]} 25. Bxa7 {[%emt 0:11:27]} Qe2 {[%emt 0:03:16]} 26. h4 {
[%emt 0:05:41]} Rd2 {[%emt 0:00:57]} 27. Qxf7 {[%emt 0:00:06]} Rxc2 {[%emt 0:
01:53]} 28. Rb1 {[%emt 0:00:08]} Nb2 {[%emt 0:06:35]} 29. Bc5 {[%emt 0:01:00]}
Qc4 {[%emt 0:05:16]} 30. Qxc4 {[%emt 0:01:27]} Nxc4 {[%emt 0:00:02]} 31. Rxb7 {
[%emt 0:00:12]} Kg8 {[%emt 0:00:20]} 32. Rb8+ {[%emt 0:02:09]} Kf7 {[%emt 0:00:
09]} 33. Rb7+ {[%emt 0:00:57]} Kf6 {[%emt 0:02:00]} 34. Be7+ {[%emt 0:00:05]}
Ke6 {[%emt 0:00:48]} 35. Bb4 {[%emt 0:00:09]} Bf6 {[%emt 0:00:30]} 36. Rh7 {
[%emt 0:03:32]} Bxh4 {[%emt 0:02:12]} 37. Rxh6 {[%emt 0:00:29]} Bxf2+ {[%emt 0:
00:10]} 38. Kh2 {[%emt 0:00:01]} Kf6 {[%emt 0:01:16]} 39. a4 {[%emt 0:00:52]}
Ra2 {[%emt 0:06:57]} 40. Rh3 {[%emt 0:00:00]} Be1 {[%emt 0:00:00]} 41. Rf3+ {
[%emt 0:01:15]} Ke6 {[%emt 0:04:05]} 42. Kh3 {[%emt 0:00:59]} Rxa4 {[%emt 0:00:
45]} 43. Kg4 {[%emt 0:00:48]} Bd2 {[%emt 0:00:58]} 44. Rf8 {[%emt 0:00:05]}
Ne3+ {[%emt 0:09:31]} 45. Kg5 {[%emt 0:02:42]} Nc2+ {[%emt 0:05:35]} 46. Kxg6 {
[%emt 0:00:07]} Nxb4 {[%emt 0:00:04]} 47. cxb4 {[%emt 0:00:07]} Bxb4 {[%emt 0:
00:16]} 48. Rf6+ {[%emt 0:00:05]} Kd7 {[%emt 0:01:01]} 49. Kf5 {[%emt 0:03:44]}
Bd6 {[%emt 0:04:03]} 50. Rg6 {[%emt 0:02:30]} Ra2 {[%emt 0:00:29]} 51. Rg7+ {
[%emt 0:00:09]} Kc6 {[%emt 0:00:09]} 52. Ke6 {[%emt 0:07:57]} Re2 {[%emt 0:01:
41]} 53. Rg4 {[%emt 0:01:24]} Bc7 {[%emt 0:01:03]} 54. g3 {[%emt 0:00:38]} Re3
{[%emt 0:00:16]} 55. Kf5 {[%emt 0:00:07]} Rf3+ {[%emt 0:04:19]} 56. Ke6 {
[%emt 0:00:04]} Re3 {[%emt 0:02:23]} 57. Kf5 {[%emt 0:00:04]} Bd6 {[%emt 0:00:
20]} 58. Rg8 {[%emt 0:01:16]} Re1 {[%emt 0:01:15]} 59. Rg6 {[%emt 0:00:52]} Kc5
{[%emt 0:00:31]} 60. Rg8 {[%emt 0:00:32]} Kc6 {[%emt 0:01:29]} 61. Rg6 {
[%emt 0:00:10]} Rd1 {[%emt 0:00:15]} 62. Rg8 {[%emt 0:00:36]} Rd3 {[%emt 0:00:
25]} 63. Rg6 {[%emt 0:02:11]} Kc5 {[%emt 0:00:20]} 64. Rg8 {[%emt 0:00:38]} Bc7
{[%emt 0:02:04]} 65. Rc8 {[%emt 0:01:28]} Kc6 {[%emt 0:00:07]} 66. Rg8 {
[%emt 0:00:04]} Kc5 {[%emt 0:00:46]} 67. Rc8 {[%emt 0:00:06]} Rd7 {[%emt 0:00:
22]} 68. g4 {[%emt 0:03:37]} Kd6 {[%emt 0:02:20]} 69. Rf8 {[%emt 0:00:28]} Rg7
{[%emt 0:01:12]} 70. g5 {[%emt 0:00:26]} Ke7 {[%emt 0:00:24]} 71. Ra8 {[%emt 0:
00:46]} Kf7 {[%emt 0:00:45]} 72. Ra7 {[%emt 0:00:44]} Ke8 {[%emt 0:00:32]} 73.
g6 {[%emt 0:00:32]} Rd7 {[%emt 0:00:39]} 74. Ke6 {[%emt 0:01:23]} Rd6+ {
[%emt 0:00:11]} 75. Kxe5 {[%emt 0:01:34]} Rxg6+ {[%emt 0:00:43]} 76. Rxc7 {
[%emt 0:00:26]} Ra6 {[%emt 0:00:06]} 77. Kf5 {[%emt 0:00:21]} Rb6 {[%emt 0:00:
11]} 78. e5 {[%emt 0:00:14]} Ra6 {[%emt 0:00:08]} 79. Rh7 {[%emt 0:01:45]} Rb6
{[%emt 0:00:08]} 80. e6 {[%emt 0:01:01]} Rb1 {[%emt 0:00:10]} 81. Rh8+ {
[%emt 0:00:11]} Ke7 {[%emt 0:00:06]} 82. Rh7+ {[%emt 0:00:04]} Ke8 {[%emt 0:00:
04]} 83. Rh8+ {[%emt 0:00:42]} Ke7 {[%emt 0:00:02]} 1/2-1/2

[Event "36th European Club Cup 2021"]
[Site "Struga"]
[Date "2021.09.20"]
[Round "3.11"]
[White "Gotovusa, Goran"]
[Black "Sakaev, Konstantin"]
[Result "0-1"]
[ECO "A48"]
[WhiteElo "2161"]
[BlackElo "2595"]
[Annotator "ChessBase"]
[PlyCount "108"]
[EventDate "2021.09.18"]
[EventType "team-tourn"]
[EventCountry "MKD"]
[SourceTitle "playchess.com"]
[Source "ChessBase"]
[SourceQuality "1"]
[TimeControl "40/5400+30:1800+30"]

1. d4 {[%emt 0:00:06]} Nf6 {[%emt 0:00:07]} 2. e3 {[%emt 0:00:59]} g6 {[%emt 0:
01:22]} 3. Nf3 {[%emt 0:00:07]} Bg7 {[%emt 0:00:06]} 4. Be2 {[%emt 0:00:06]} c5
{[%emt 0:01:32]} 5. O-O {[%emt 0:00:42]} O-O {[%emt 0:01:10]} 6. c3 {[%emt 0:
07:38]} Qc7 {[%emt 0:04:16]} 7. Nbd2 {[%emt 0:00:42]} d5 {[%emt 0:01:21]} 8.
Ne5 {[%emt 0:03:34]} Nbd7 {[%emt 0:11:59]} 9. f4 {[%emt 0:01:10]} b6 {[%emt 0:
02:52]} 10. Bd3 {[%emt 0:24:44]} Bb7 {[%emt 0:06:20]} 11. Qf3 {[%emt 0:01:45]}
Ne8 {[%emt 0:06:11]} 12. g4 {[%emt 0:06:17]} Nxe5 {[%emt 0:06:25]} 13. dxe5 {
[%emt 0:07:55]} f6 {[%emt 0:02:23]} 14. e6 {[%emt 0:02:20]} f5 {[%emt 0:01:17]}
15. gxf5 {[%emt 0:00:40]} gxf5 {[%emt 0:01:35]} 16. Qh3 {[%emt 0:04:49]} Nd6 {
[%emt 0:01:13]} 17. Nf3 {[%emt 0:06:50]} Rf6 {[%emt 0:02:08]} 18. Kf2 {[%emt 0:
02:45]} Rh6 {[%emt 0:07:40]} 19. Nh4 {[%emt 0:03:02]} Qc8 {[%emt 0:09:54]} 20.
Rg1 {[%emt 0:04:51]} Qxe6 {[%emt 0:03:48]} 21. Qg2 {[%emt 0:01:37]} Qf7 {
[%emt 0:08:22]} 22. Nf3 {[%emt 0:14:01]} Kh8 {[%emt 0:01:35]} 23. Ng5 {[%emt 0:
01:28]} Qh5 {[%emt 0:03:39]} 24. h3 {[%emt 0:02:25]} Bf6 {[%emt 0:02:40]} 25.
Be2 {[%emt 0:01:08]} Qe8 {[%emt 0:09:10]} 26. Bf3 {[%emt 0:00:29]} Ne4+ {
[%emt 0:01:44]} 27. Ke1 {[%emt 0:00:42]} e6 {[%emt 0:01:01]} 28. h4 {[%emt 0:
00:25]} Qe7 {[%emt 0:00:26]} 29. Bd2 {[%emt 0:01:02]} Rxh4 {[%emt 0:00:56]} 30.
Bxe4 {[%emt 0:00:33]} dxe4 {[%emt 0:01:12]} 31. Rd1 {[%emt 0:00:26]} Rg4 {
[%emt 0:00:28]} 32. Qh2 {[%emt 0:00:19]} Rxg1+ {[%emt 0:00:09]} 33. Qxg1 {
[%emt 0:00:02]} Rg8 {[%emt 0:00:38]} 34. c4 {[%emt 0:00:23]} Bxb2 {[%emt 0:00:
19]} 35. Kf2 {[%emt 0:00:19]} Bf6 {[%emt 0:00:45]} 36. Qh2 {[%emt 0:00:17]} Bc6
{[%emt 0:01:09]} 37. Rh1 {[%emt 0:00:30]} Rg7 {[%emt 0:00:03]} 38. Qh6 {
[%emt 0:00:30]} Be8 {[%emt 0:00:15]} 39. Rg1 {[%emt 0:00:49]} Bg6 {[%emt 0:00:
29]} 40. a4 {[%emt 0:00:00]} Rg8 {[%emt 0:00:00]} 41. Ke2 {[%emt 0:08:44]} Qg7
{[%emt 0:06:57]} 42. Qh4 {[%emt 0:02:06]} Qd7 {[%emt 0:02:16]} 43. Qh6 {
[%emt 0:00:32]} Bb2 {[%emt 0:10:28]} 44. Rd1 {[%emt 0:05:21]} Qg7 {[%emt 0:07:
02]} 45. Qh4 {[%emt 0:02:13]} Bf6 {[%emt 0:00:47]} 46. Rg1 {[%emt 0:06:23]} h5
{[%emt 0:00:50]} 47. Qe1 {[%emt 0:03:15]} Qd7 {[%emt 0:00:43]} 48. Kf2 {
[%emt 0:00:18]} Qd3 {[%emt 0:00:36]} 49. Qe2 {[%emt 0:00:50]} Qxe2+ {[%emt 0:
01:38]} 50. Kxe2 {[%emt 0:00:01]} Be8 {[%emt 0:02:57]} 51. a5 {[%emt 0:01:01]}
b5 {[%emt 0:00:06]} 52. Rb1 {[%emt 0:00:28]} b4 {[%emt 0:00:17]} 53. Nxe6 {
[%emt 0:00:37]} Rg2+ {[%emt 0:00:15]} 54. Kd1 {[%emt 0:00:13]} Ba4+ {[%emt 0:
00:32]} 0-1